[Event "47th GER-ch Blitz 2020"]
[Site "Magdeburg"]
[Date "2020.08.15"]
[Round "28.7"]
[White "Ehmann, Thilo"]
[Black "Schoewel, Matthias"]
[Result "1-0"]
[ECO "C66"]
[WhiteElo "2329"]
[BlackElo "2218"]
[Annotator "ChessBase"]
[PlyCount "88"]
[EventDate "2020.07.28"]
[EventType "tourn"]
[EventCountry "GER"]
[SourceTitle "playchess.com"]
[Source "ChessBase"]
[SourceQuality "1"]
[TimeControl "180+2"]

1. e4 {[%emt 0:00:00]} e5 {[%emt 0:00:00]} 2. Nf3 {[%emt 0:00:00]} Nc6 {[%emt 0:00:00]} 3. Bb5 {[%emt 0:00:00]} d6 {[%emt 0:00:01]} 4. d4 {[%emt 0:00:04]} Bd7 {[%emt 0:00:01]} 5. O-O {[%emt 0:00:06]} Nf6 {[%emt 0:00:01]} 6. Nc3 {[%emt 0:00:05]} Be7 {[%emt 0:00:01]} 7. d5 {[%emt 0:00:16]} Nb8 {[%emt 0:00:01]} 8. Bc4 {[%emt 0:00:00]} O-O {[%emt 0:00:02]} 9. h3 {[%emt 0:00:02]} h6 {[%emt 0:00:01]} 10. a4 {[%emt 0:00:17]} Nh7 {[%emt 0:00:02]} 11. a5 a6 12. Be3 {[%emt 0:00:30]} f5 {[%emt 0:00:04]} 13. exf5 {[%emt 0:00:01]} Bxf5 {[%emt 0:00:00]} 14. Bd3 {[%emt 0:00:03]} Qd7 {[%emt 0:00:08]} 15. Ne4 {[%emt 0:00:23]} Nf6 {[%emt 0:00:10]} 16. Ng3 {[%emt 0:00:09]} Bxd3 {[%emt 0:00:23]} 17. Qxd3 {[%emt 0:00:01]} Qe8 {[%emt 0:00:08]} 18. Nd2 {[%emt 0:00:08]} Nbd7 {[%emt 0:00:05]} 19. Qc4 {[%emt 0:00:15]} Bd8 {[%emt 0:00:11]} 20. Nde4 {[%emt 0:00:02]} Qf7 {[%emt 0:00:03]} 21. Rad1 {[%emt 0:00:04]} Nxe4 {[%emt 0:00:03]} 22. Nxe4 {[%emt 0:00:01]} Nf6 {[%emt 0:00:01]} 23. Nxf6+ {[%emt 0:00:04]} Bxf6 {[%emt 0:00:03]} 24. Qb3 {[%emt 0:00:02]} Rfb8 {[%emt 0:00:20]} 25. c4 {[%emt 0:00:08]} Qg6 {[%emt 0:00:05]} 26. c5 {[%emt 0:00:07]} Bg5 {[%emt 0:00:02]} 27. cxd6 {[%emt 0:00:06]} cxd6 {[%emt 0:00:10]} 28. Bxg5 {[%emt 0:00:09]} Qxg5 {[%emt 0:00:02]} 29. Rc1 {[%emt 0:00:03]} Qe7 {[%emt 0:00:09]} 30. Rc4 {[%emt 0:00:05]} Rc8 {[%emt 0:00:06]} 31. Rfc1 {[%emt 0:00:01]} Rxc4 {[%emt 0:00:00]} 32. Qxc4 {[%emt 0:00:01]} Qf7 {[%emt 0:00:12]} 33. Rc3 {[%emt 0:00:05]} Rf8 {[%emt 0:00:07]} 34. Rf3 {[%emt 0:00:07]} Qd7 {[%emt 0:00:01]} 35. Rxf8+ {[%emt 0:00:05]} Kxf8 {[%emt 0:00:01]} 36. Qd3 {[%emt 0:00:03]} Kg8 {[%emt 0:00:04]} 37. Kf1 {[%emt 0:00:03]} Qa4 {[%emt 0:00:06]} 38. g3 {[%emt 0:00:13]} Qxa5 {[%emt 0:00:06]} 39. Kg2 {[%emt 0:00:09]} Qc5 {[%emt 0:00:01]} 40. h4 {[%emt 0:00:08]} b5 {[%emt 0:00:01]} 41. g4 {[%emt 0:00:08]} a5 {[%emt 0:00:01]} 42. g5 {[%emt 0:00:01]} hxg5 {[%emt 0:00:05]} 43. hxg5 {[%emt 0:00:01]} Qc4 {[%emt 0:00:09]} 44. Qf3 Qc2 1-0

[Event "47th GER-ch Blitz 2020"]
[Site "Magdeburg"]
[Date "2020.08.15"]
[Round "28.8"]
[White "Baskin, Robert"]
[Black "Berger, Steve"]
[Result "1-0"]
[ECO "C02"]
[WhiteElo "2390"]
[BlackElo "2408"]
[Annotator "ChessBase"]
[PlyCount "57"]
[EventDate "2020.07.28"]
[EventType "tourn"]
[EventCountry "GER"]
[SourceTitle "playchess.com"]
[Source "ChessBase"]
[SourceQuality "1"]
[TimeControl "180+2"]

1. e4 {[%emt 0:00:00]} e6 {[%emt 0:00:00]} 2. d4 {[%emt 0:00:00]} d5 {[%emt 0:00:00]} 3. e5 {[%emt 0:00:01]} c5 {[%emt 0:00:00]} 4. c3 {[%emt 0:00:00]} Nc6 {[%emt 0:00:01]} 5. Nf3 {[%emt 0:00:01]} Bd7 {[%emt 0:00:01]} 6. Be2 {[%emt 0:00:01]} Nge7 {[%emt 0:00:01]} 7. Na3 {[%emt 0:00:01]} cxd4 {[%emt 0:00:00]} 8. cxd4 {[%emt 0:00:01]} Nf5 {[%emt 0:00:01]} 9. Nc2 {[%emt 0:00:01]} Qb6 {[%emt 0:00:01]} 10. O-O {[%emt 0:00:03]} Na5 {[%emt 0:00:00]} 11. Ne3 {[%emt 0:00:38]} Nxe3 {[%emt 0:00:16]} 12. fxe3 {[%emt 0:00:01]} Be7 {[%emt 0:00:02]} 13. Bd3 {[%emt 0:00:22]} Bb5 {[%emt 0:00:04]} 14. b3 {[%emt 0:00:01]} Rc8 {[%emt 0:00:14]} 15. Bxb5+ {[%emt 0:00:13]} Qxb5 {[%emt 0:00:02]} 16. Bd2 {[%emt 0:00:01]} Nc6 {[%emt 0:00:14]} 17. Be1 {[%emt 0:00:01]} h6 {[%emt 0:00:05]} 18. a4 {[%emt 0:00:16]} Qb6 {[%emt 0:00:04]} 19. Ra2 {[%emt 0:00:04]} Nb4 {[%emt 0:00:20]} 20. Raf2 {[%emt 0:00:03]} a5 {[%emt 0:00:17]} 21. Kh1 {[%emt 0:00:26]} Rc7 {[%emt 0:00:03]} 22. Ng1 {[%emt 0:00:06]} Bg5 {[%emt 0:00:07]} 23. Bd2 {[%emt 0:00:17]} O-O {[%emt 0:00:18]} 24. Nh3 {[%emt 0:00:02]} Be7 {[%emt 0:00:28]} 25. Qh5 {[%emt 0:00:02]} f5 {[%emt 0:00:43]} 26. g4 {[%emt 0:00:18]} Nd3 {[%emt 0:00:12]} 27. Rf3 {[%emt 0:00:11]} Kh7 {[%emt 0:00:16]} 28. gxf5 {[%emt 0:00:03]} exf5 {[%emt 0:00:02]} 29. Rxf5 {[%emt 0:00:02]} 1-0

[Event "47th GER-ch Blitz 2020"]
[Site "Magdeburg"]
[Date "2020.08.15"]
[Round "28.9"]
[White "Barzen, Pascal"]
[Black "Kopylov, Michael"]
[Result "1-0"]
[ECO "B05"]
[WhiteElo "2321"]
[BlackElo "2407"]
[Annotator "ChessBase"]
[PlyCount "51"]
[EventDate "2020.07.28"]
[EventType "tourn"]
[EventCountry "GER"]
[SourceTitle "playchess.com"]
[Source "ChessBase"]
[SourceQuality "1"]
[TimeControl "180+2"]

1. e4 {[%emt 0:00:00]} Nf6 {[%emt 0:00:00]} 2. e5 {[%emt 0:00:00]} Nd5 3. d4 d6 {[%emt 0:00:01]} 4. Nf3 {[%emt 0:00:01]} Bg4 {[%emt 0:00:01]} 5. c4 {[%emt 0:00:02]} Nb6 {[%emt 0:00:01]} 6. Be2 {[%emt 0:00:05]} e6 {[%emt 0:00:01]} 7. Nc3 {[%emt 0:00:07]} Nc6 {[%emt 0:00:01]} 8. exd6 {[%emt 0:00:10]} cxd6 {[%emt 0:00:01]} 9. h3 {[%emt 0:00:10]} Bxf3 {[%emt 0:00:04]} 10. Bxf3 {[%emt 0:00:01]} Nxc4 {[%emt 0:00:02]} 11. d5 {[%emt 0:00:13]} exd5 {[%emt 0:00:04]} 12. Bxd5 {[%emt 0:00:05]} Nb6 {[%emt 0:00:03]} 13. Bb3 {[%emt 0:00:04]} Be7 {[%emt 0:00:03]} 14. O-O {[%emt 0:00:01]} O-O {[%emt 0:00:01]} 15. Qh5 {[%emt 0:00:03]} g6 {[%emt 0:00:17]} 16. Qg4 {[%emt 0:00:12]} Ne5 {[%emt 0:00:07]} 17. Qg3 {[%emt 0:00:03]} Nec4 {[%emt 0:00:30]} 18. Rd1 {[%emt 0:00:05]} Rc8 {[%emt 0:00:04]} 19. Bh6 {[%emt 0:00:02]} Re8 {[%emt 0:00:02]} 20. Qf3 {[%emt 0:00:13]} Bf6 {[%emt 0:00:27]} 21. Qxb7 {[%emt 0:00:22]} Rc7 {[%emt 0:00:09]} 22. Qf3 {[%emt 0:00:04]} Nxb2 {[%emt 0:00:32]} 23. Nb5 {[%emt 0:00:01]} Rd7 {[%emt 0:00:41]} 24. Re1 {[%emt 0:00:01]} N2c4 {[%emt 0:00:07]} 25. Rxe8+ Qxe8 26. Qxf6 {[%emt 0:00:09]} 1-0

[Event "47th GER-ch Blitz 2020"]
[Site "Magdeburg"]
[Date "2020.08.15"]
[Round "28.10"]
[White "Wichmann, Cliff"]
[Black "Hess, Max"]
[Result "1/2-1/2"]
[ECO "E91"]
[WhiteElo "2305"]
[BlackElo "2378"]
[Annotator "ChessBase"]
[PlyCount "74"]
[EventDate "2020.07.28"]
[EventType "tourn"]
[EventCountry "GER"]
[SourceTitle "playchess.com"]
[Source "ChessBase"]
[SourceQuality "1"]
[TimeControl "180+2"]

1. d4 {[%emt 0:00:00]} Nf6 {[%emt 0:00:00]} 2. c4 {[%emt 0:00:00]} g6 {[%emt 0:00:00]} 3. Nc3 {[%emt 0:00:00]} Bg7 {[%emt 0:00:00]} 4. e4 {[%emt 0:00:01]} d6 {[%emt 0:00:00]} 5. Nf3 {[%emt 0:00:01]} O-O {[%emt 0:00:02]} 6. Be2 {[%emt 0:00:00]} Nbd7 {[%emt 0:00:01]} 7. e5 {[%emt 0:00:01]} dxe5 {[%emt 0:00:05]} 8. dxe5 {[%emt 0:00:01]} Ng4 {[%emt 0:00:02]} 9. e6 {[%emt 0:00:01]} fxe6 {[%emt 0:00:04]} 10. O-O {[%emt 0:00:02]} Nde5 {[%emt 0:00:24]} 11. Qc2 {[%emt 0:00:07]} Nxf3+ {[%emt 0:00:13]} 12. Bxf3 {[%emt 0:00:01]} Rxf3 {[%emt 0:00:01]} 13. gxf3 {[%emt 0:00:01]} Ne5 {[%emt 0:00:01]} 14. Qe4 {[%emt 0:00:10]} Bd7 {[%emt 0:00:05]} 15. Rd1 {[%emt 0:00:42]} Qe8 {[%emt 0:00:10]} 16. Rxd7 {[%emt 0:00:05]} Qxd7 {[%emt 0:00:02]} 17. Bf4 {[%emt 0:00:03]} Qd3 {[%emt 0:00:08]} 18. Qxb7 {[%emt 0:00:15]} Nxf3+ {[%emt 0:00:09]} 19. Kh1 {[%emt 0:00:03]} Rf8 {[%emt 0:00:05]} 20. Rd1 {[%emt 0:00:08]} Qxc4 {[%emt 0:00:06]} 21. Qxf3 {[%emt 0:00:08]} Rxf4 {[%emt 0:00:09]} 22. Qe3 {[%emt 0:01:05]} Bxc3 {[%emt 0:00:47]} 23. Qxc3 {[%emt 0:00:20]} Qe4+ {[%emt 0:00:11]} 24. Kg1 {[%emt 0:00:11]} Rg4+ {[%emt 0:00:03]} 25. Kf1 {[%emt 0:00:00]} Qg2+ {[%emt 0:00:04]} 26. Ke2 {[%emt 0:00:02]} Re4+ {[%emt 0:00:00]} 27. Kd3 {[%emt 0:00:03]} Qf3+ {[%emt 0:00:03]} 28. Kc2 {[%emt 0:00:01]} Qxf2+ {[%emt 0:00:04]} 29. Rd2 {[%emt 0:00:04]} Re2 {[%emt 0:00:03]} 30. Rxe2 {[%emt 0:00:03]} Qxe2+ {[%emt 0:00:01]} 31. Kb3 {[%emt 0:00:01]} Qb5+ {[%emt 0:00:04]} 32. Kc2 {[%emt 0:00:04]} c6 {[%emt 0:00:05]} 33. Qe3 {[%emt 0:00:05]} Qc4+ {[%emt 0:00:04]} 34. Kb1 {[%emt 0:00:07]} a5 {[%emt 0:00:03]} 35. b3 {[%emt 0:00:03]} Qd5 {[%emt 0:00:02]} 36. h3 {[%emt 0:00:03]} e5 {[%emt 0:00:03]} 37. Qa7 {[%emt 0:00:03]} Qd1+ 1/2-1/2

[Event "47th GER-ch Blitz 2020"]
[Site "Magdeburg"]
[Date "2020.08.15"]
[Round "28.11"]
[White "Zelbel, Patrick"]
[Black "Siebarth, Raiko"]
[Result "1/2-1/2"]
[ECO "B22"]
[WhiteElo "2448"]
[BlackElo "2333"]
[Annotator "ChessBase"]
[PlyCount "90"]
[EventDate "2020.07.28"]
[EventType "tourn"]
[EventCountry "GER"]
[SourceTitle "playchess.com"]
[Source "ChessBase"]
[SourceQuality "1"]
[TimeControl "180+2"]

1. e4 {[%emt 0:00:00]} c5 {[%emt 0:00:00]} 2. c3 {[%emt 0:00:00]} Nf6 {[%emt 0:00:00]} 3. e5 Nd5 4. Bc4 {[%emt 0:00:00]} Nb6 {[%emt 0:00:05]} 5. Bb3 {[%emt 0:00:01]} e6 {[%emt 0:00:05]} 6. d4 {[%emt 0:00:04]} cxd4 {[%emt 0:00:02]} 7. cxd4 {[%emt 0:00:00]} d6 {[%emt 0:00:00]} 8. Qe2 {[%emt 0:00:08]} dxe5 {[%emt 0:00:07]} 9. dxe5 {[%emt 0:00:02]} Nc6 {[%emt 0:00:01]} 10. Nf3 {[%emt 0:00:02]} h6 {[%emt 0:00:25]} 11. O-O {[%emt 0:00:02]} g5 {[%emt 0:00:02]} 12. h3 {[%emt 0:00:11]} Rg8 {[%emt 0:00:01]} 13. Rd1 {[%emt 0:00:05]} Qc7 {[%emt 0:00:01]} 14. Nc3 {[%emt 0:00:06]} a6 {[%emt 0:00:01]} 15. Ne4 {[%emt 0:00:11]} Be7 {[%emt 0:00:07]} 16. Nd6+ {[%emt 0:00:24]} Kf8 {[%emt 0:00:03]} 17. h4 {[%emt 0:00:59]} Nd7 {[%emt 0:00:03]} 18. hxg5 {[%emt 0:00:14]} hxg5 {[%emt 0:00:07]} 19. Qe4 {[%emt 0:00:45]} Ndxe5 {[%emt 0:00:26]} 20. Nxe5 {[%emt 0:00:04]} Bxd6 {[%emt 0:00:02]} 21. Nxf7 {[%emt 0:00:09]} Bh2+ {[%emt 0:00:12]} 22. Kh1 {[%emt 0:00:01]} Qxf7 {[%emt 0:00:01]} 23. Kxh2 {[%emt 0:00:08]} Qxf2 {[%emt 0:00:08]} 24. Qf3+ {[%emt 0:00:04]} Qxf3 {[%emt 0:00:02]} 25. gxf3 {[%emt 0:00:01]} Ke7 {[%emt 0:00:04]} 26. Be3 {[%emt 0:00:05]} g4 {[%emt 0:00:08]} 27. Bc5+ {[%emt 0:00:02]} Kf7 {[%emt 0:00:04]} 28. fxg4 {[%emt 0:00:01]} Rxg4 {[%emt 0:00:00]} 29. Rf1+ {[%emt 0:00:00]} Kg6 {[%emt 0:00:06]} 30. Bc2+ {[%emt 0:00:02]} Kg7 {[%emt 0:00:03]} 31. Rg1 {[%emt 0:00:02]} e5 {[%emt 0:00:02]} 32. Rxg4+ {[%emt 0:00:01]} Bxg4 {[%emt 0:00:00]} 33. Rg1 {[%emt 0:00:01]} Rh8+ {[%emt 0:00:01]} 34. Kg3 {[%emt 0:00:01]} Be6 {[%emt 0:00:02]} 35. b3 {[%emt 0:00:08]} Rc8 {[%emt 0:00:07]} 36. Be4 {[%emt 0:00:02]} Nd8 {[%emt 0:00:06]} 37. Be3 {[%emt 0:00:04]} Rc3 {[%emt 0:00:06]} 38. Kf2+ {[%emt 0:00:00]} Kf8 {[%emt 0:00:02]} 39. Bh6+ {[%emt 0:00:02]} Ke8 {[%emt 0:00:01]} 40. Bg7 {[%emt 0:00:03]} Nf7 {[%emt 0:00:02]} 41. Bg6 {[%emt 0:00:01]} Ke7 {[%emt 0:00:03]} 42. Re1 {[%emt 0:00:01]} Kd7 {[%emt 0:00:06]} 43. Bxf7 {[%emt 0:00:01]} Bxf7 {[%emt 0:00:01]} 44. Bxe5 {[%emt 0:00:01]} Rc2+ {[%emt 0:00:00]} 45. Re2 {[%emt 0:00:01]} Rxe2+ {[%emt 0:00:05]} 1/2-1/2

[Event "47th GER-ch Blitz 2020"]
[Site "Magdeburg"]
[Date "2020.08.15"]
[Round "28.12"]
[White "Dobrikov, Marco"]
[Black "Schneider, Ilja"]
[Result "1/2-1/2"]
[ECO "A01"]
[WhiteElo "2290"]
[BlackElo "2479"]
[Annotator "ChessBase"]
[PlyCount "127"]
[EventDate "2020.07.28"]
[EventType "tourn"]
[EventCountry "GER"]
[SourceTitle "playchess.com"]
[Source "ChessBase"]
[SourceQuality "1"]
[TimeControl "180+2"]

1. b3 {[%emt 0:00:01]} d5 {[%emt 0:00:00]} 2. Bb2 {[%emt 0:00:02]} Bg4 {[%emt 0:00:00]} 3. h3 {[%emt 0:00:03]} Bh5 {[%emt 0:00:00]} 4. g4 {[%emt 0:00:01]} Bg6 {[%emt 0:00:01]} 5. Bg2 {[%emt 0:00:02]} c6 {[%emt 0:00:01]} 6. d3 {[%emt 0:00:03]} Nd7 {[%emt 0:00:01]} 7. Nd2 {[%emt 0:00:04]} e5 {[%emt 0:00:03]} 8. e3 {[%emt 0:00:02]} h5 {[%emt 0:00:05]} 9. Ngf3 {[%emt 0:00:08]} Bd6 {[%emt 0:00:13]} 10. Qe2 {[%emt 0:00:03]} hxg4 {[%emt 0:00:23]} 11. hxg4 {[%emt 0:00:01]} Rxh1+ {[%emt 0:00:01]} 12. Bxh1 {[%emt 0:00:01]} Ngf6 {[%emt 0:00:01]} 13. g5 {[%emt 0:00:02]} Nh7 {[%emt 0:00:03]} 14. O-O-O {[%emt 0:00:12]} Nxg5 {[%emt 0:00:01]} 15. Nxg5 {[%emt 0:00:06]} Qxg5 {[%emt 0:00:02]} 16. Kb1 {[%emt 0:00:05]} O-O-O {[%emt 0:00:06]} 17. Nf3 {[%emt 0:00:14]} Qf6 {[%emt 0:00:11]} 18. Rg1 {[%emt 0:00:02]} Rh8 {[%emt 0:00:22]} 19. Bg2 {[%emt 0:00:07]} Kb8 {[%emt 0:00:06]} 20. Nd2 {[%emt 0:00:11]} Bh5 {[%emt 0:00:15]} 21. Bf3 {[%emt 0:00:05]} Bxf3 {[%emt 0:00:01]} 22. Nxf3 {[%emt 0:00:02]} Rh3 {[%emt 0:00:10]} 23. Rg3 {[%emt 0:00:27]} Rxg3 {[%emt 0:00:13]} 24. fxg3 {[%emt 0:00:01]} Qg6 {[%emt 0:00:11]} 25. Qf2 {[%emt 0:00:10]} e4 {[%emt 0:00:23]} 26. dxe4 {[%emt 0:00:01]} dxe4 {[%emt 0:00:02]} 27. Nh4 {[%emt 0:00:19]} Bxg3 {[%emt 0:00:38]} 28. Qd2 {[%emt 0:00:28]} Qe6 {[%emt 0:00:03]} 29. Ng2 {[%emt 0:00:05]} f6 {[%emt 0:00:08]} 30. Qd4 {[%emt 0:00:09]} Qd5 {[%emt 0:00:03]} 31. Qb4 {[%emt 0:00:09]} Bd6 {[%emt 0:00:01]} 32. Qe1 {[%emt 0:00:01]} a6 {[%emt 0:00:02]} 33. Nh4 {[%emt 0:00:02]} g5 {[%emt 0:00:01]} 34. Ng2 {[%emt 0:00:04]} Be5 {[%emt 0:00:01]} 35. Ba3 {[%emt 0:00:02]} f5 {[%emt 0:00:03]} 36. Be7 {[%emt 0:00:03]} Bf6 {[%emt 0:00:03]} 37. Bxf6 {[%emt 0:00:02]} Nxf6 {[%emt 0:00:01]} 38. Qg3+ {[%emt 0:00:01]} Ka7 {[%emt 0:00:07]} 39. Qxg5 {[%emt 0:00:01]} Nd7 {[%emt 0:00:03]} 40. Nh4 {[%emt 0:00:04]} Nb6 {[%emt 0:00:05]} 41. Qxf5 {[%emt 0:00:05]} Qd1+ {[%emt 0:00:02]} 42. Kb2 {[%emt 0:00:01]} Qh1 {[%emt 0:00:02]} 43. Ng6 {[%emt 0:00:05]} Qf3 {[%emt 0:00:00]} 44. Qc5 {[%emt 0:00:04]} Qf6+ {[%emt 0:00:01]} 45. Ne5 {[%emt 0:00:02]} Ka8 {[%emt 0:00:02]} 46. Qxb6 {[%emt 0:00:05]} Qxe5+ {[%emt 0:00:01]} 47. Kb1 {[%emt 0:00:02]} Qd5 {[%emt 0:00:02]} 48. Qd4 {[%emt 0:00:05]} Qe6 {[%emt 0:00:05]} 49. Kb2 {[%emt 0:00:01]} Kb8 {[%emt 0:00:02]} 50. a4 {[%emt 0:00:01]} Kc8 {[%emt 0:00:01]} 51. Kc3 {[%emt 0:00:02]} Kc7 {[%emt 0:00:04]} 52. Qc4 {[%emt 0:00:05]} Qf6+ {[%emt 0:00:01]} 53. Qd4 {[%emt 0:00:03]} Qe6 {[%emt 0:00:01]} 54. a5 {[%emt 0:00:03]} Qf5 {[%emt 0:00:01]} 55. Qb6+ Kc8 56. Kb4 {[%emt 0:00:06]} Qd5 {[%emt 0:00:03]} 57. c4 {[%emt 0:00:05]} Qd2+ {[%emt 0:00:00]} 58. Ka3 {[%emt 0:00:02]} Qd6+ {[%emt 0:00:02]} 59. Qb4 {[%emt 0:00:06]} Qd3 {[%emt 0:00:07]} 60. Qf8+ {[%emt 0:00:02]} Kc7 {[%emt 0:00:01]} 61. Qe7+ {[%emt 0:00:01]} Kb8 {[%emt 0:00:02]} 62. Qf8+ {[%emt 0:00:02]} Kc7 {[%emt 0:00:03]} 63. Qe7+ {[%emt 0:00:01]} Kb8 {[%emt 0:00:01]} 64. Qf8+ {[%emt 0:00:03]} 1/2-1/2

[Event "47th GER-ch Blitz 2020"]
[Site "Magdeburg"]
[Date "2020.08.15"]
[Round "28.13"]
[White "Frischmann, Rick"]
[Black "Svane, Frederik"]
[Result "0-1"]
[ECO "B27"]
[WhiteElo "2347"]
[BlackElo "2421"]
[Annotator "ChessBase"]
[PlyCount "140"]
[EventDate "2020.07.28"]
[EventType "tourn"]
[EventCountry "GER"]
[SourceTitle "playchess.com"]
[Source "ChessBase"]
[SourceQuality "1"]
[TimeControl "180+2"]

1. e4 {[%emt 0:00:00]} c5 {[%emt 0:00:00]} 2. Nf3 {[%emt 0:00:01]} g6 {[%emt 0:00:00]} 3. d4 {[%emt 0:00:01]} cxd4 {[%emt 0:00:00]} 4. Qxd4 {[%emt 0:00:04]} Nf6 {[%emt 0:00:00]} 5. Nc3 {[%emt 0:00:01]} Nc6 {[%emt 0:00:02]} 6. Qa4 {[%emt 0:00:01]} d6 {[%emt 0:00:03]} 7. e5 {[%emt 0:00:01]} dxe5 {[%emt 0:00:01]} 8. Nxe5 {[%emt 0:00:01]} Bg7 {[%emt 0:00:01]} 9. Bb5 {[%emt 0:00:07]} O-O {[%emt 0:00:01]} 10. Nxc6 bxc6 {[%emt 0:00:01]} 11. Bxc6 {[%emt 0:00:06]} Bd7 {[%emt 0:00:01]} 12. O-O {[%emt 0:00:18]} Bxc6 {[%emt 0:00:15]} 13. Qxc6 {[%emt 0:00:01]} Rc8 {[%emt 0:00:01]} 14. Qa4 {[%emt 0:00:03]} Qb6 {[%emt 0:00:10]} 15. Qb3 {[%emt 0:00:03]} Qc6 {[%emt 0:00:24]} 16. h3 {[%emt 0:00:18]} Nd7 {[%emt 0:00:44]} 17. Nd5 {[%emt 0:00:20]} Rfe8 {[%emt 0:00:01]} 18. Bg5 {[%emt 0:00:15]} Nc5 {[%emt 0:00:10]} 19. Qc4 {[%emt 0:00:02]} Qb7 {[%emt 0:00:04]} 20. Rfd1 {[%emt 0:00:59]} Ne6 {[%emt 0:00:12]} 21. Qg4 {[%emt 0:00:07]} Nxg5 {[%emt 0:00:17]} 22. Qxg5 {[%emt 0:00:01]} Rxc2 {[%emt 0:00:01]} 23. Re1 {[%emt 0:00:15]} e6 {[%emt 0:00:03]} 24. Nf6+ {[%emt 0:00:00]} Bxf6 {[%emt 0:00:00]} 25. Qxf6 {[%emt 0:00:01]} Qxb2 {[%emt 0:00:03]} 26. Qh4 {[%emt 0:00:08]} Rec8 {[%emt 0:00:27]} 27. Red1 {[%emt 0:00:13]} Kg7 {[%emt 0:00:24]} 28. Rab1 {[%emt 0:00:12]} Qf6 {[%emt 0:00:10]} 29. Qg3 {[%emt 0:00:13]} R8c3 {[%emt 0:00:04]} 30. f3 {[%emt 0:00:02]} Rxa2 {[%emt 0:00:03]} 31. Rb7 {[%emt 0:00:01]} Rcc2 {[%emt 0:00:02]} 32. Rdd7 {[%emt 0:00:02]} Rxg2+ {[%emt 0:00:13]} 33. Qxg2 {[%emt 0:00:01]} Rxg2+ {[%emt 0:00:01]} 34. Kxg2 {[%emt 0:00:00]} a5 {[%emt 0:00:02]} 35. Ra7 {[%emt 0:00:02]} Qf5 {[%emt 0:00:02]} 36. Ra6 {[%emt 0:00:04]} a4 {[%emt 0:00:03]} 37. Rda7 {[%emt 0:00:01]} Qc2+ {[%emt 0:00:02]} 38. Kg3 {[%emt 0:00:01]} h5 {[%emt 0:00:02]} 39. Rxa4 {[%emt 0:00:01]} g5 {[%emt 0:00:02]} 40. h4 {[%emt 0:00:02]} Kg6 {[%emt 0:00:04]} 41. hxg5 {[%emt 0:00:02]} Qc5 {[%emt 0:00:03]} 42. R7a5 {[%emt 0:00:03]} Qg1+ {[%emt 0:00:01]} 43. Kh3 {[%emt 0:00:01]} Qh1+ {[%emt 0:00:02]} 44. Kg3 {[%emt 0:00:01]} Qg1+ {[%emt 0:00:01]} 45. Kh3 {[%emt 0:00:01]} Qe3 {[%emt 0:00:00]} 46. Kg3 {[%emt 0:00:04]} e5 {[%emt 0:00:01]} 47. Ra6+ {[%emt 0:00:06]} Kxg5 {[%emt 0:00:03]} 48. Ra8 {[%emt 0:00:03]} h4+ {[%emt 0:00:02]} 49. Kg2 {[%emt 0:00:00]} Qe2+ {[%emt 0:00:01]} 50. Kg1 {[%emt 0:00:02]} Qe1+ {[%emt 0:00:02]} 51. Kg2 {[%emt 0:00:06]} Qg3+ {[%emt 0:00:01]} 52. Kf1 {[%emt 0:00:01]} Qxf3+ {[%emt 0:00:01]} 53. Kg1 {[%emt 0:00:00]} Qg3+ {[%emt 0:00:02]} 54. Kh1 {[%emt 0:00:03]} Qf3+ {[%emt 0:00:02]} 55. Kg1 {[%emt 0:00:00]} h3 {[%emt 0:00:01]} 56. Rg8+ {[%emt 0:00:02]} Kf5 {[%emt 0:00:01]} 57. Rh4 {[%emt 0:00:05]} e4 {[%emt 0:00:04]} 58. Kh2 {[%emt 0:00:00]} e3 {[%emt 0:00:06]} 59. Rxh3 {[%emt 0:00:01]} Qf2+ {[%emt 0:00:01]} 60. Rg2 {[%emt 0:00:01]} Qf4+ {[%emt 0:00:01]} 61. Rhg3 {[%emt 0:00:07]} Ke4 {[%emt 0:00:03]} 62. Kg1 {[%emt 0:00:01]} f5 {[%emt 0:00:01]} 63. Rg8 {[%emt 0:00:02]} Kf3 {[%emt 0:00:01]} 64. Kf1 {[%emt 0:00:02]} Qc4+ {[%emt 0:00:03]} 65. Kg1 {[%emt 0:00:01]} f4 {[%emt 0:00:00]} 66. Rh8 {[%emt 0:00:01]} Qd4 {[%emt 0:00:00]} 67. Rh3+ {[%emt 0:00:03]} Ke4 {[%emt 0:00:00]} 68. Rh7 {[%emt 0:00:01]} e2+ {[%emt 0:00:00]} 69. Kh2 {[%emt 0:00:03]} e1=Q {[%emt 0:00:00]} 70. Re7+ {[%emt 0:00:01]} Qe5 {[%emt 0:00:00]} 0-1